{"text_format":"3","workbook":"xlsx","n_sheets":13,"sheets":["Январь","Февраль","Май","Март","Апрель","Июнь","Июль","Август","Сентябрь","Октябрь","Ноябрь","Декабрь","Сводный отчет с начала года"],"not_rendered":{"charts":1,"defined_names":13},"read":"whole","date_system":"1900"}

{"sheet":"Январь","index":0,"n_rows":9,"n_cols":14,"rows_kept":9,"merged":[[3,0,4,0],[6,0,7,0]]}
["ЯНВАРЬ"]
["Продажи в Интернете",null,"Код\nаукциона","Описание\nэлемента","Цена\nпокупки","Цена продажи","Сборы за Интернет","Сборы\nPayPal","Сборы по\nкредитной карте","Расходы\nна доставку","Сборы на\nдоставку","Прибыль и\nубытки от продаж","Прибыль и \nубытки от доставки","Итоговая\nприбыль и убытки"]
["Год",null,"TS001","Элемент 1",{"v":5,"d":"5.00р."},{"v":4,"d":"4.00р."},{"v":2,"d":"2.00р."},{"v":1.5,"d":"1.50р."},{"v":0,"d":"0.00р."},{"v":4,"d":"4.00р."},{"v":2,"d":"2.00р."},{"$f":"IFERROR(ЯнварьПродажи[Цена продажи]-(ЯнварьПродажи[Цена\nпокупки]+ЯнварьПродажи[Сборы за Интернет]+ЯнварьПродажи[Сборы\nPayPal]+ЯнварьПродажи[Сборы по\nкредитной карте]),\"\")","v":{"v":-4.5,"d":"-4.50р."}},{"$f":"ЯнварьПродажи[Расходы\nна доставку]-ЯнварьПродажи[Сборы на\nдоставку]","v":{"v":2,"d":"2.00р."}},{"$f":"ЯнварьПродажи[Прибыль и\nубытки от продаж]+ЯнварьПродажи[Прибыль и \nубытки от доставки]","v":{"v":-2.5,"d":"-2.50р."}}]
[2012,null,"TP004","Элемент 2",{"v":2,"d":"2.00р."},{"v":30,"d":"30.00р."},{"v":0.5,"d":"0.50р."},{"v":0.5,"d":"0.50р."},null,{"v":4,"d":"4.00р."},{"v":5.5,"d":"5.50р."},{"$f":"IFERROR(ЯнварьПродажи[Цена продажи]-(ЯнварьПродажи[Цена\nпокупки]+ЯнварьПродажи[Сборы за Интернет]+ЯнварьПродажи[Сборы\nPayPal]+ЯнварьПродажи[Сборы по\nкредитной карте]),\"\")","v":{"v":27,"d":"27.00р."}},{"$f":"ЯнварьПродажи[Расходы\nна доставку]-ЯнварьПродажи[Сборы на\nдоставку]","v":{"v":-1.5,"d":"-1.50р."}},{"$f":"ЯнварьПродажи[Прибыль и\nубытки от продаж]+ЯнварьПродажи[Прибыль и \nубытки от доставки]","v":{"v":25.5,"d":"25.50р."}}]
[null,null,"RS99","Элемент 3",{"v":17,"d":"17.00р."},{"v":23,"d":"23.00р."},{"v":2,"d":"2.00р."},null,{"v":2,"d":"2.00р."},{"v":3,"d":"3.00р."},{"v":2,"d":"2.00р."},{"$f":"IFERROR(ЯнварьПродажи[Цена продажи]-(ЯнварьПродажи[Цена\nпокупки]+ЯнварьПродажи[Сборы за Интернет]+ЯнварьПродажи[Сборы\nPayPal]+ЯнварьПродажи[Сборы по\nкредитной карте]),\"\")","v":{"v":2,"d":"2.00р."}},{"$f":"ЯнварьПродажи[Расходы\nна доставку]-ЯнварьПродажи[Сборы на\nдоставку]","v":{"v":1,"d":"1.00р."}},{"$f":"ЯнварьПродажи[Прибыль и\nубытки от продаж]+ЯнварьПродажи[Прибыль и \nубытки от доставки]","v":{"v":3,"d":"3.00р."}}]
["Итоговая прибыль и убытки",null,"ST001","Элемент 4",{"v":120,"d":"120.00р."},{"v":180,"d":"180.00р."},{"v":2,"d":"2.00р."},{"v":1.5,"d":"1.50р."},null,{"v":3,"d":"3.00р."},{"v":2,"d":"2.00р."},{"$f":"IFERROR(ЯнварьПродажи[Цена продажи]-(ЯнварьПродажи[Цена\nпокупки]+ЯнварьПродажи[Сборы за Интернет]+ЯнварьПродажи[Сборы\nPayPal]+ЯнварьПродажи[Сборы по\nкредитной карте]),\"\")","v":{"v":56.5,"d":"56.50р."}},{"$f":"ЯнварьПродажи[Расходы\nна доставку]-ЯнварьПродажи[Сборы на\nдоставку]","v":{"v":1,"d":"1.00р."}},{"$f":"ЯнварьПродажи[Прибыль и\nубытки от продаж]+ЯнварьПродажи[Прибыль и \nубытки от доставки]","v":{"v":57.5,"d":"57.50р."}}]
[{"$f":"ЯнварьПродажи[[#Totals], [Итоговая\nприбыль и убытки]]","v":{"v":89,"d":"89.00р."}},null,"ST001","Элемент 5",{"v":10,"d":"10.00р."},{"v":12,"d":"12.00р."},{"v":2,"d":"2.00р."},{"v":1.5,"d":"1.50р."},null,{"v":14,"d":"14.00р."},{"v":7,"d":"7.00р."},{"$f":"IFERROR(ЯнварьПродажи[Цена продажи]-(ЯнварьПродажи[Цена\nпокупки]+ЯнварьПродажи[Сборы за Интернет]+ЯнварьПродажи[Сборы\nPayPal]+ЯнварьПродажи[Сборы по\nкредитной карте]),\"\")","v":{"v":-1.5,"d":"-1.50р."}},{"$f":"ЯнварьПродажи[Расходы\nна доставку]-ЯнварьПродажи[Сборы на\nдоставку]","v":{"v":7,"d":"7.00р."}},{"$f":"ЯнварьПродажи[Прибыль и\nубытки от продаж]+ЯнварьПродажи[Прибыль и \nубытки от доставки]","v":{"v":5.5,"d":"5.50р."}}]
[null,null,"Итого",{"$f":"\"Продано: \"&SUBTOTAL(103,ЯнварьПродажи[Описание\nэлемента])","v":"Продано: 5"},{"$f":"SUBTOTAL(109,ЯнварьПродажи[Цена\nпокупки])","v":{"v":154,"d":"154.00р."}},{"$f":"SUBTOTAL(109,ЯнварьПродажи[Цена продажи])","v":{"v":249,"d":"249.00р."}},{"$f":"SUBTOTAL(109,ЯнварьПродажи[Сборы за Интернет])","v":{"v":8.5,"d":"8.50р."}},{"$f":"SUBTOTAL(109,ЯнварьПродажи[Сборы\nPayPal])","v":{"v":5,"d":"5.00р."}},{"$f":"SUBTOTAL(109,ЯнварьПродажи[Сборы по\nкредитной карте])","v":{"v":2,"d":"2.00р."}},{"$f":"SUBTOTAL(109,ЯнварьПродажи[Расходы\nна доставку])","v":{"v":28,"d":"28.00р."}},{"$f":"SUBTOTAL(109,ЯнварьПродажи[Сборы на\nдоставку])","v":{"v":18.5,"d":"18.50р."}},{"$f":"SUBTOTAL(109,ЯнварьПродажи[Прибыль и\nубытки от продаж])","v":{"v":79.5,"d":"79.50р."}},{"$f":"SUBTOTAL(109,ЯнварьПродажи[Прибыль и \nубытки от доставки])","v":{"v":9.5,"d":"9.50р."}},{"$f":"SUBTOTAL(109,ЯнварьПродажи[Итоговая\nприбыль и убытки])","v":{"v":89,"d":"89.00р."}}]
["Тенденция прибыли и убытков"]

{"sheet":"Февраль","index":1,"n_rows":9,"n_cols":14,"rows_kept":9,"merged":[[3,0,4,0],[6,0,7,0]]}
["ФЕВРАЛЬ"]
["Продажи в Интернете",null,"Код\nаукциона","Описание\nэлемента","Цена\nпокупки","Цена продажи","Сборы за Интернет","Сборы\nPayPal","Сборы по\nкредитной карте","Расходы\nна доставку","Сборы на\nдоставку","Прибыль и\nубытки от продаж","Прибыль и \nубытки от доставки","Итоговая\nприбыль и убытки"]
["Год",null,"TS020","Элемент 1",{"v":10,"d":"10.00р."},{"v":175,"d":"175.00р."},{"v":3,"d":"3.00р."},{"v":1.5,"d":"1.50р."},{"v":0,"d":"0.00р."},{"v":7,"d":"7.00р."},{"v":5,"d":"5.00р."},{"$f":"IFERROR(ФевральПродажи[Цена продажи]-(ФевральПродажи[Цена\nпокупки]+G3:G7+ФевральПродажи[Сборы\nPayPal]+ФевральПродажи[Сборы по\nкредитной карте]),\"\")","v":{"v":160.5,"d":"160.50р."}},{"$f":"ФевральПродажи[Расходы\nна доставку]-ФевральПродажи[Сборы на\nдоставку]","v":{"v":2,"d":"2.00р."}},{"$f":"ФевральПродажи[Прибыль и\nубытки от продаж]+ФевральПродажи[Прибыль и \nубытки от доставки]","v":{"v":162.5,"d":"162.50р."}}]
[{"$f":"ПродажиГод","v":2012},null,"TS021","Элемент 2",{"v":32,"d":"32.00р."},{"v":100,"d":"100.00р."},{"v":3,"d":"3.00р."},null,{"v":3.2,"d":"3.20р."},{"v":20,"d":"20.00р."},{"v":13,"d":"13.00р."},{"$f":"IFERROR(ФевральПродажи[Цена продажи]-(ФевральПродажи[Цена\nпокупки]+G4:G8+ФевральПродажи[Сборы\nPayPal]+ФевральПродажи[Сборы по\nкредитной карте]),\"\")","v":{"v":61.8,"d":"61.80р."}},{"$f":"ФевральПродажи[Расходы\nна доставку]-ФевральПродажи[Сборы на\nдоставку]","v":{"v":7,"d":"7.00р."}},{"$f":"ФевральПродажи[Прибыль и\nубытки от продаж]+ФевральПродажи[Прибыль и \nубытки от доставки]","v":{"v":68.8,"d":"68.80р."}}]
[null,null,"TS022","Элемент 3",{"v":3,"d":"3.00р."},{"v":7,"d":"7.00р."},{"v":2,"d":"2.00р."},null,{"v":2,"d":"2.00р."},{"v":0.5,"d":"0.50р."},{"v":1.2,"d":"1.20р."},{"$f":"IFERROR(ФевральПродажи[Цена продажи]-(ФевральПродажи[Цена\nпокупки]+G5:G9+ФевральПродажи[Сборы\nPayPal]+ФевральПродажи[Сборы по\nкредитной карте]),\"\")","v":{"v":0,"d":"0.00р."}},{"$f":"ФевральПродажи[Расходы\nна доставку]-ФевральПродажи[Сборы на\nдоставку]","v":{"v":-0.7,"d":"-0.70р."}},{"$f":"ФевральПродажи[Прибыль и\nубытки от продаж]+ФевральПродажи[Прибыль и \nубытки от доставки]","v":{"v":-0.7,"d":"-0.70р."}}]
["Итоговая прибыль и убытки",null,"TS023","Элемент 4",{"v":22,"d":"22.00р."},{"v":18,"d":"18.00р."},{"v":3,"d":"3.00р."},{"v":1.5,"d":"1.50р."},null,{"v":7,"d":"7.00р."},{"v":10,"d":"10.00р."},{"$f":"IFERROR(ФевральПродажи[Цена продажи]-(ФевральПродажи[Цена\nпокупки]+G6:G10+ФевральПродажи[Сборы\nPayPal]+ФевральПродажи[Сборы по\nкредитной карте]),\"\")","v":{"v":-8.5,"d":"-8.50р."}},{"$f":"ФевральПродажи[Расходы\nна доставку]-ФевральПродажи[Сборы на\nдоставку]","v":{"v":-3,"d":"-3.00р."}},{"$f":"ФевральПродажи[Прибыль и\nубытки от продаж]+ФевральПродажи[Прибыль и \nубытки от доставки]","v":{"v":-11.5,"d":"-11.50р."}}]
[{"$f":"ФевральПродажи[[#Totals],[Итоговая\nприбыль и убытки]]","v":{"v":224.60000000000002,"d":"224.60р."}},null,"TS024","Элемент 5",{"v":10,"d":"10.00р."},{"v":12,"d":"12.00р."},{"v":2,"d":"2.00р."},{"v":1.5,"d":"1.50р."},null,{"v":14,"d":"14.00р."},{"v":7,"d":"7.00р."},{"$f":"IFERROR(ФевральПродажи[Цена продажи]-(ФевральПродажи[Цена\nпокупки]+G7:G11+ФевральПродажи[Сборы\nPayPal]+ФевральПродажи[Сборы по\nкредитной карте]),\"\")","v":{"v":-1.5,"d":"-1.50р."}},{"$f":"ФевральПродажи[Расходы\nна доставку]-ФевральПродажи[Сборы на\nдоставку]","v":{"v":7,"d":"7.00р."}},{"$f":"ФевральПродажи[Прибыль и\nубытки от продаж]+ФевральПродажи[Прибыль и \nубытки от доставки]","v":{"v":5.5,"d":"5.50р."}}]
[null,null,"Итого",{"$f":"\"Продано: \"&SUBTOTAL(103,ФевральПродажи[Описание\nэлемента])","v":"Продано: 5"},{"$f":"SUBTOTAL(109,ФевральПродажи[Цена\nпокупки])","v":{"v":77,"d":"77.00р."}},{"$f":"SUBTOTAL(109,ФевральПродажи[Цена продажи])","v":{"v":312,"d":"312.00р."}},{"$f":"SUBTOTAL(109,ФевральПродажи[Сборы за Интернет])","v":{"v":13,"d":"13.00р."}},{"$f":"SUBTOTAL(109,ФевральПродажи[Сборы\nPayPal])","v":{"v":4.5,"d":"4.50р."}},{"$f":"SUBTOTAL(109,ФевральПродажи[Сборы по\nкредитной карте])","v":{"v":5.2,"d":"5.20р."}},{"$f":"SUBTOTAL(109,ФевральПродажи[Расходы\nна доставку])","v":{"v":48.5,"d":"48.50р."}},{"$f":"SUBTOTAL(109,ФевральПродажи[Сборы на\nдоставку])","v":{"v":36.2,"d":"36.20р."}},{"$f":"SUBTOTAL(109,ФевральПродажи[Прибыль и\nубытки от продаж])","v":{"v":212.3,"d":"212.30р."}},{"$f":"SUBTOTAL(109,ФевральПродажи[Прибыль и \nубытки от доставки])","v":{"v":12.3,"d":"12.30р."}},{"$f":"SUBTOTAL(109,ФевральПродажи[Итоговая\nприбыль и убытки])","v":{"v":224.60000000000002,"d":"224.60р."}}]
["Тенденция прибыли и убытков"]

{"sheet":"Май","index":2,"n_rows":9,"n_cols":14,"rows_kept":9,"merged":[[3,0,4,0],[6,0,7,0]]}
["МАЙ"]
["Продажи в Интернете",null,"Код\nаукциона","Описание\nэлемента","Цена\nпокупки","Цена продажи","Сборы за Интернет","Сборы\nPayPal","Сборы по\nкредитной карте","Расходы\nна доставку","Сборы на\nдоставку","Прибыль и\nубытки от продаж","Прибыль и \nубытки от доставки","Итоговая\nприбыль и убытки"]
["Год",{"$nulls":11},{"$f":"МайПродажи[Расходы\nна доставку]-МайПродажи[Сборы на\nдоставку]","v":{"v":0,"d":"0.00р."}},{"$f":"МайПродажи[Прибыль и\nубытки от продаж]+МайПродажи[Прибыль и \nубытки от доставки]","v":{"v":0,"d":"0.00р."}}]
[{"$f":"ПродажиГод","v":2012},{"$nulls":11},{"$f":"МайПродажи[Расходы\nна доставку]-МайПродажи[Сборы на\nдоставку]","v":{"v":0,"d":"0.00р."}},{"$f":"МайПродажи[Прибыль и\nубытки от продаж]+МайПродажи[Прибыль и \nубытки от доставки]","v":{"v":0,"d":"0.00р."}}]
[{"$nulls":12},{"$f":"МайПродажи[Расходы\nна доставку]-МайПродажи[Сборы на\nдоставку]","v":{"v":0,"d":"0.00р."}},{"$f":"МайПродажи[Прибыль и\nубытки от продаж]+МайПродажи[Прибыль и \nубытки от доставки]","v":{"v":0,"d":"0.00р."}}]
["Итоговая прибыль и убытки",{"$nulls":11},{"$f":"МайПродажи[Расходы\nна доставку]-МайПродажи[Сборы на\nдоставку]","v":{"v":0,"d":"0.00р."}},{"$f":"МайПродажи[Прибыль и\nубытки от продаж]+МайПродажи[Прибыль и \nубытки от доставки]","v":{"v":0,"d":"0.00р."}}]
[{"$f":"МайПродажи[[#Totals],[Итоговая\nприбыль и убытки]]","v":{"v":0,"d":"0.00р."}},{"$nulls":11},{"$f":"МайПродажи[Расходы\nна доставку]-МайПродажи[Сборы на\nдоставку]","v":{"v":0,"d":"0.00р."}},{"$f":"МайПродажи[Прибыль и\nубытки от продаж]+МайПродажи[Прибыль и \nубытки от доставки]","v":{"v":0,"d":"0.00р."}}]
[null,null,"Итого",{"$f":"\"Продано:\"&SUBTOTAL(103,МайПродажи[Описание\nэлемента])","v":"Продано:0"},{"$f":"SUBTOTAL(109,МайПродажи[Цена\nпокупки])","v":{"v":0,"d":"0.00р."}},{"$f":"SUBTOTAL(109,МайПродажи[Цена продажи])","v":{"v":0,"d":"0.00р."}},{"$f":"SUBTOTAL(109,МайПродажи[Сборы за Интернет])","v":{"v":0,"d":"0.00р."}},{"$f":"SUBTOTAL(109,МайПродажи[Сборы\nPayPal])","v":{"v":0,"d":"0.00р."}},{"$f":"SUBTOTAL(109,МайПродажи[Сборы по\nкредитной карте])","v":{"v":0,"d":"0.00р."}},{"$f":"SUBTOTAL(109,МайПродажи[Расходы\nна доставку])","v":{"v":0,"d":"0.00р."}},{"$f":"SUBTOTAL(109,МайПродажи[Сборы на\nдоставку])","v":{"v":0,"d":"0.00р."}},{"$f":"SUBTOTAL(109,МайПродажи[Прибыль и\nубытки от продаж])","v":{"v":0,"d":"0.00р."}},{"$f":"SUBTOTAL(109,МайПродажи[Прибыль и \nубытки от доставки])","v":{"v":0,"d":"0.00р."}},{"$f":"SUBTOTAL(109,МайПродажи[Итоговая\nприбыль и убытки])","v":{"v":0,"d":"0.00р."}}]
["Тенденция прибыли и убытков"]

{"sheet":"Март","index":3,"n_rows":9,"n_cols":14,"rows_kept":9,"merged":[[3,0,4,0],[6,0,7,0]]}
["МАРТ"]
["Продажи в Интернете",null,"Код\nаукциона","Описание\nэлемента","Цена\nпокупки","Цена продажи","Сборы за Интернет","Сборы\nPayPal","Сборы по\nкредитной карте","Расходы\nна доставку","Сборы на\nдоставку","Прибыль и\nубытки от продаж","Прибыль и \nубытки от доставки","Итоговая\nприбыль и убытки"]
["Год",{"$nulls":10},{"$f":"IFERROR(МартПродажи[Цена продажи]-(МартПродажи[Цена\nпокупки]+МартПродажи[Сборы за Интернет]+МартПродажи[Сборы\nPayPal]+МартПродажи[Сборы по\nкредитной карте]),\"\")","v":{"v":0,"d":"0.00р."}},{"$f":"МартПродажи[Расходы\nна доставку]-МартПродажи[Сборы на\nдоставку]","v":{"v":0,"d":"0.00р."}},{"$f":"МартПродажи[Прибыль и\nубытки от продаж]+МартПродажи[Прибыль и \nубытки от доставки]","v":{"v":0,"d":"0.00р."}}]
[{"$f":"ПродажиГод","v":2012},{"$nulls":10},{"$f":"IFERROR(МартПродажи[Цена продажи]-(МартПродажи[Цена\nпокупки]+МартПродажи[Сборы за Интернет]+МартПродажи[Сборы\nPayPal]+МартПродажи[Сборы по\nкредитной карте]),\"\")","v":{"v":0,"d":"0.00р."}},{"$f":"МартПродажи[Расходы\nна доставку]-МартПродажи[Сборы на\nдоставку]","v":{"v":0,"d":"0.00р."}},{"$f":"МартПродажи[Прибыль и\nубытки от продаж]+МартПродажи[Прибыль и \nубытки от доставки]","v":{"v":0,"d":"0.00р."}}]
[{"$nulls":11},{"$f":"IFERROR(МартПродажи[Цена продажи]-(МартПродажи[Цена\nпокупки]+МартПродажи[Сборы за Интернет]+МартПродажи[Сборы\nPayPal]+МартПродажи[Сборы по\nкредитной карте]),\"\")","v":{"v":0,"d":"0.00р."}},{"$f":"МартПродажи[Расходы\nна доставку]-МартПродажи[Сборы на\nдоставку]","v":{"v":0,"d":"0.00р."}},{"$f":"МартПродажи[Прибыль и\nубытки от продаж]+МартПродажи[Прибыль и \nубытки от доставки]","v":{"v":0,"d":"0.00р."}}]
["Итоговая прибыль и убытки",{"$nulls":10},{"$f":"IFERROR(МартПродажи[Цена продажи]-(МартПродажи[Цена\nпокупки]+МартПродажи[Сборы за Интернет]+МартПродажи[Сборы\nPayPal]+МартПродажи[Сборы по\nкредитной карте]),\"\")","v":{"v":0,"d":"0.00р."}},{"$f":"МартПродажи[Расходы\nна доставку]-МартПродажи[Сборы на\nдоставку]","v":{"v":0,"d":"0.00р."}},{"$f":"МартПродажи[Прибыль и\nубытки от продаж]+МартПродажи[Прибыль и \nубытки от доставки]","v":{"v":0,"d":"0.00р."}}]
[{"$f":"МартПродажи[[#Totals],[Итоговая\nприбыль и убытки]]","v":{"v":0,"d":"0.00р."}},{"$nulls":10},{"$f":"IFERROR(МартПродажи[Цена продажи]-(МартПродажи[Цена\nпокупки]+МартПродажи[Сборы за Интернет]+МартПродажи[Сборы\nPayPal]+МартПродажи[Сборы по\nкредитной карте]),\"\")","v":{"v":0,"d":"0.00р."}},{"$f":"МартПродажи[Расходы\nна доставку]-МартПродажи[Сборы на\nдоставку]","v":{"v":0,"d":"0.00р."}},{"$f":"МартПродажи[Прибыль и\nубытки от продаж]+МартПродажи[Прибыль и \nубытки от доставки]","v":{"v":0,"d":"0.00р."}}]
[null,null,"Итого",{"$f":"\"Продано: \"&SUBTOTAL(103,МартПродажи[Описание\nэлемента])","v":"Продано: 0"},{"$f":"SUBTOTAL(109,МартПродажи[Цена\nпокупки])","v":{"v":0,"d":"0.00р."}},{"$f":"SUBTOTAL(109,МартПродажи[Цена продажи])","v":{"v":0,"d":"0.00р."}},{"$f":"SUBTOTAL(109,МартПродажи[Сборы за Интернет])","v":{"v":0,"d":"0.00р."}},{"$f":"SUBTOTAL(109,МартПродажи[Сборы\nPayPal])","v":{"v":0,"d":"0.00р."}},{"$f":"SUBTOTAL(109,МартПродажи[Сборы по\nкредитной карте])","v":{"v":0,"d":"0.00р."}},{"$f":"SUBTOTAL(109,МартПродажи[Расходы\nна доставку])","v":{"v":0,"d":"0.00р."}},{"$f":"SUBTOTAL(109,МартПродажи[Сборы на\nдоставку])","v":{"v":0,"d":"0.00р."}},{"$f":"SUBTOTAL(109,МартПродажи[Прибыль и\nубытки от продаж])","v":{"v":0,"d":"0.00р."}},{"$f":"SUBTOTAL(109,МартПродажи[Прибыль и \nубытки от доставки])","v":{"v":0,"d":"0.00р."}},{"$f":"SUBTOTAL(109,МартПродажи[Итоговая\nприбыль и убытки])","v":{"v":0,"d":"0.00р."}}]
["Тенденция прибыли и убытков"]

{"sheet":"Апрель","index":4,"n_rows":9,"n_cols":14,"rows_kept":9,"merged":[[3,0,4,0],[6,0,7,0]]}
["АПРЕЛЬ"]
["Продажи в Интернете",null,"Код\nаукциона","Описание\nэлемента","Цена\nпокупки","Цена продажи","Сборы за Интернет","Сборы\nPayPal","Сборы по\nкредитной карте","Расходы\nна доставку","Сборы на\nдоставку","Прибыль и\nубытки от продаж","Прибыль и \nубытки от доставки","Итоговая\nприбыль и убытки"]
["Год",{"$nulls":11},{"$f":"АпрельПродажи[Расходы\nна доставку]-АпрельПродажи[Сборы на\nдоставку]","v":{"v":0,"d":"0.00р."}},{"$f":"АпрельПродажи[Прибыль и\nубытки от продаж]+АпрельПродажи[Прибыль и \nубытки от доставки]","v":{"v":0,"d":"0.00р."}}]
[{"$f":"ПродажиГод","v":2012},{"$nulls":11},{"$f":"АпрельПродажи[Расходы\nна доставку]-АпрельПродажи[Сборы на\nдоставку]","v":{"v":0,"d":"0.00р."}},{"$f":"АпрельПродажи[Прибыль и\nубытки от продаж]+АпрельПродажи[Прибыль и \nубытки от доставки]","v":{"v":0,"d":"0.00р."}}]
[{"$nulls":12},{"$f":"АпрельПродажи[Расходы\nна доставку]-АпрельПродажи[Сборы на\nдоставку]","v":{"v":0,"d":"0.00р."}},{"$f":"АпрельПродажи[Прибыль и\nубытки от продаж]+АпрельПродажи[Прибыль и \nубытки от доставки]","v":{"v":0,"d":"0.00р."}}]
["Итоговая прибыль и убытки",{"$nulls":11},{"$f":"АпрельПродажи[Расходы\nна доставку]-АпрельПродажи[Сборы на\nдоставку]","v":{"v":0,"d":"0.00р."}},{"$f":"АпрельПродажи[Прибыль и\nубытки от продаж]+АпрельПродажи[Прибыль и \nубытки от доставки]","v":{"v":0,"d":"0.00р."}}]
[{"$f":"АпрельПродажи[[#Totals],[Итоговая\nприбыль и убытки]]","v":{"v":0,"d":"0.00р."}},{"$nulls":11},{"$f":"АпрельПродажи[Расходы\nна доставку]-АпрельПродажи[Сборы на\nдоставку]","v":{"v":0,"d":"0.00р."}},{"$f":"АпрельПродажи[Прибыль и\nубытки от продаж]+АпрельПродажи[Прибыль и \nубытки от доставки]","v":{"v":0,"d":"0.00р."}}]
[null,null,"Итого",{"$f":"\"Продано: \"&SUBTOTAL(103,АпрельПродажи[Описание\nэлемента])","v":"Продано: 0"},{"$f":"SUBTOTAL(109,АпрельПродажи[Цена\nпокупки])","v":{"v":0,"d":"0.00р."}},{"$f":"SUBTOTAL(109,АпрельПродажи[Цена продажи])","v":{"v":0,"d":"0.00р."}},{"$f":"SUBTOTAL(109,АпрельПродажи[Сборы за Интернет])","v":{"v":0,"d":"0.00р."}},{"$f":"SUBTOTAL(109,АпрельПродажи[Сборы\nPayPal])","v":{"v":0,"d":"0.00р."}},{"$f":"SUBTOTAL(109,АпрельПродажи[Сборы по\nкредитной карте])","v":{"v":0,"d":"0.00р."}},{"$f":"SUBTOTAL(109,АпрельПродажи[Расходы\nна доставку])","v":{"v":0,"d":"0.00р."}},{"$f":"SUBTOTAL(109,АпрельПродажи[Сборы на\nдоставку])","v":{"v":0,"d":"0.00р."}},{"$f":"SUBTOTAL(109,АпрельПродажи[Прибыль и\nубытки от продаж])","v":{"v":0,"d":"0.00р."}},{"$f":"SUBTOTAL(109,АпрельПродажи[Прибыль и \nубытки от доставки])","v":{"v":0,"d":"0.00р."}},{"$f":"SUBTOTAL(109,АпрельПродажи[Итоговая\nприбыль и убытки])","v":{"v":0,"d":"0.00р."}}]
["Тенденция прибыли и убытков"]

{"sheet":"Июнь","index":5,"n_rows":9,"n_cols":14,"rows_kept":9,"merged":[[3,0,4,0],[6,0,7,0]]}
["ИЮНЬ"]
["Продажи в Интернете",null,"Код\nаукциона","Описание\nэлемента","Цена\nпокупки","Цена продажи","Сборы за Интернет","Сборы\nPayPal","Сборы по\nкредитной карте","Расходы\nна доставку","Сборы на\nдоставку","Прибыль и\nубытки от продаж","Прибыль и \nубытки от доставки","Итоговая\nприбыль и убытки"]
["Год",{"$nulls":11},{"$f":"ИюньПродажи[Расходы\nна доставку]-ИюньПродажи[Сборы на\nдоставку]","v":{"v":0,"d":"0.00р."}},{"$f":"ИюньПродажи[Прибыль и\nубытки от продаж]+ИюньПродажи[Прибыль и \nубытки от доставки]","v":{"v":0,"d":"0.00р."}}]
[{"$f":"ПродажиГод","v":2012},{"$nulls":11},{"$f":"ИюньПродажи[Расходы\nна доставку]-ИюньПродажи[Сборы на\nдоставку]","v":{"v":0,"d":"0.00р."}},{"$f":"ИюньПродажи[Прибыль и\nубытки от продаж]+ИюньПродажи[Прибыль и \nубытки от доставки]","v":{"v":0,"d":"0.00р."}}]
[{"$nulls":12},{"$f":"ИюньПродажи[Расходы\nна доставку]-ИюньПродажи[Сборы на\nдоставку]","v":{"v":0,"d":"0.00р."}},{"$f":"ИюньПродажи[Прибыль и\nубытки от продаж]+ИюньПродажи[Прибыль и \nубытки от доставки]","v":{"v":0,"d":"0.00р."}}]
["Итоговая прибыль и убытки",{"$nulls":11},{"$f":"ИюньПродажи[Расходы\nна доставку]-ИюньПродажи[Сборы на\nдоставку]","v":{"v":0,"d":"0.00р."}},{"$f":"ИюньПродажи[Прибыль и\nубытки от продаж]+ИюньПродажи[Прибыль и \nубытки от доставки]","v":{"v":0,"d":"0.00р."}}]
[{"$f":"ИюньПродажи[[#Totals],[Итоговая\nприбыль и убытки]]","v":{"v":0,"d":"0.00р."}},{"$nulls":11},{"$f":"ИюньПродажи[Расходы\nна доставку]-ИюньПродажи[Сборы на\nдоставку]","v":{"v":0,"d":"0.00р."}},{"$f":"ИюньПродажи[Прибыль и\nубытки от продаж]+ИюньПродажи[Прибыль и \nубытки от доставки]","v":{"v":0,"d":"0.00р."}}]
[null,null,"Итого",{"$f":"\"Продано: \"&SUBTOTAL(103,ИюньПродажи[Описание\nэлемента])","v":"Продано: 0"},{"$f":"SUBTOTAL(109,ИюньПродажи[Цена\nпокупки])","v":{"v":0,"d":"0.00р."}},{"$f":"SUBTOTAL(109,ИюньПродажи[Цена продажи])","v":{"v":0,"d":"0.00р."}},{"$f":"SUBTOTAL(109,ИюньПродажи[Сборы за Интернет])","v":{"v":0,"d":"0.00р."}},{"$f":"SUBTOTAL(109,ИюньПродажи[Сборы\nPayPal])","v":{"v":0,"d":"0.00р."}},{"$f":"SUBTOTAL(109,ИюньПродажи[Сборы по\nкредитной карте])","v":{"v":0,"d":"0.00р."}},{"$f":"SUBTOTAL(109,ИюньПродажи[Расходы\nна доставку])","v":{"v":0,"d":"0.00р."}},{"$f":"SUBTOTAL(109,ИюньПродажи[Сборы на\nдоставку])","v":{"v":0,"d":"0.00р."}},{"$f":"SUBTOTAL(109,ИюньПродажи[Прибыль и\nубытки от продаж])","v":{"v":0,"d":"0.00р."}},{"$f":"SUBTOTAL(109,ИюньПродажи[Прибыль и \nубытки от доставки])","v":{"v":0,"d":"0.00р."}},{"$f":"SUBTOTAL(109,ИюньПродажи[Итоговая\nприбыль и убытки])","v":{"v":0,"d":"0.00р."}}]
["Тенденция прибыли и убытков"]

{"sheet":"Июль","index":6,"n_rows":9,"n_cols":14,"rows_kept":9,"merged":[[3,0,4,0],[6,0,7,0]]}
["ИЮЛЬ"]
["Продажи в Интернете",null,"Код\nаукциона","Описание\nэлемента","Цена\nпокупки","Цена продажи","Сборы за Интернет","Сборы\nPayPal","Сборы по\nкредитной карте","Расходы\nна доставку","Сборы на\nдоставку","Прибыль и\nубытки от продаж","Прибыль и \nубытки от доставки","Итоговая\nприбыль и убытки"]
["Год",{"$nulls":11},{"$f":"ИюльПродажи[Расходы\nна доставку]-ИюльПродажи[Сборы на\nдоставку]","v":{"v":0,"d":"0.00р."}},{"$f":"ИюльПродажи[Прибыль и\nубытки от продаж]+ИюльПродажи[Прибыль и \nубытки от доставки]","v":{"v":0,"d":"0.00р."}}]
[{"$f":"ПродажиГод","v":2012},{"$nulls":11},{"$f":"ИюльПродажи[Расходы\nна доставку]-ИюльПродажи[Сборы на\nдоставку]","v":{"v":0,"d":"0.00р."}},{"$f":"ИюльПродажи[Прибыль и\nубытки от продаж]+ИюльПродажи[Прибыль и \nубытки от доставки]","v":{"v":0,"d":"0.00р."}}]
[{"$nulls":12},{"$f":"ИюльПродажи[Расходы\nна доставку]-ИюльПродажи[Сборы на\nдоставку]","v":{"v":0,"d":"0.00р."}},{"$f":"ИюльПродажи[Прибыль и\nубытки от продаж]+ИюльПродажи[Прибыль и \nубытки от доставки]","v":{"v":0,"d":"0.00р."}}]
["Итоговая прибыль и убытки",{"$nulls":11},{"$f":"ИюльПродажи[Расходы\nна доставку]-ИюльПродажи[Сборы на\nдоставку]","v":{"v":0,"d":"0.00р."}},{"$f":"ИюльПродажи[Прибыль и\nубытки от продаж]+ИюльПродажи[Прибыль и \nубытки от доставки]","v":{"v":0,"d":"0.00р."}}]
[{"$f":"ИюльПродажи[[#Totals],[Итоговая\nприбыль и убытки]]","v":{"v":0,"d":"0.00р."}},{"$nulls":11},{"$f":"ИюльПродажи[Расходы\nна доставку]-ИюльПродажи[Сборы на\nдоставку]","v":{"v":0,"d":"0.00р."}},{"$f":"ИюльПродажи[Прибыль и\nубытки от продаж]+ИюльПродажи[Прибыль и \nубытки от доставки]","v":{"v":0,"d":"0.00р."}}]
[null,null,"Итого",{"$f":"\"Продано: \"&SUBTOTAL(103,ИюльПродажи[Описание\nэлемента])","v":"Продано: 0"},{"$f":"SUBTOTAL(109,ИюльПродажи[Цена\nпокупки])","v":{"v":0,"d":"0.00р."}},{"$f":"SUBTOTAL(109,ИюльПродажи[Цена продажи])","v":{"v":0,"d":"0.00р."}},{"$f":"SUBTOTAL(109,ИюльПродажи[Сборы за Интернет])","v":{"v":0,"d":"0.00р."}},{"$f":"SUBTOTAL(109,ИюльПродажи[Сборы\nPayPal])","v":{"v":0,"d":"0.00р."}},{"$f":"SUBTOTAL(109,ИюльПродажи[Сборы по\nкредитной карте])","v":{"v":0,"d":"0.00р."}},{"$f":"SUBTOTAL(109,ИюльПродажи[Расходы\nна доставку])","v":{"v":0,"d":"0.00р."}},{"$f":"SUBTOTAL(109,ИюльПродажи[Сборы на\nдоставку])","v":{"v":0,"d":"0.00р."}},{"$f":"SUBTOTAL(109,ИюльПродажи[Прибыль и\nубытки от продаж])","v":{"v":0,"d":"0.00р."}},{"$f":"SUBTOTAL(109,ИюльПродажи[Прибыль и \nубытки от доставки])","v":{"v":0,"d":"0.00р."}},{"$f":"SUBTOTAL(109,ИюльПродажи[Итоговая\nприбыль и убытки])","v":{"v":0,"d":"0.00р."}}]
["Тенденция прибыли и убытков"]

{"sheet":"Август","index":7,"n_rows":9,"n_cols":14,"rows_kept":9,"merged":[[3,0,4,0],[6,0,7,0]]}
["АВГУСТ"]
["Продажи в Интернете",null,"Код\nаукциона","Описание\nэлемента","Цена\nпокупки","Цена продажи","Сборы за Интернет","Сборы\nPayPal","Сборы по\nкредитной карте","Расходы\nна доставку","Сборы на\nдоставку","Прибыль и\nубытки от продаж","Прибыль и \nубытки от доставки","Итоговая\nприбыль и убытки"]
["Год",{"$nulls":11},{"$f":"АвгустПродажи[Расходы\nна доставку]-АвгустПродажи[Сборы на\nдоставку]","v":{"v":0,"d":"0.00р."}},{"$f":"АвгустПродажи[Прибыль и\nубытки от продаж]+АвгустПродажи[Прибыль и \nубытки от доставки]","v":{"v":0,"d":"0.00р."}}]
[{"$f":"ПродажиГод","v":2012},{"$nulls":11},{"$f":"АвгустПродажи[Расходы\nна доставку]-АвгустПродажи[Сборы на\nдоставку]","v":{"v":0,"d":"0.00р."}},{"$f":"АвгустПродажи[Прибыль и\nубытки от продаж]+АвгустПродажи[Прибыль и \nубытки от доставки]","v":{"v":0,"d":"0.00р."}}]
[{"$nulls":12},{"$f":"АвгустПродажи[Расходы\nна доставку]-АвгустПродажи[Сборы на\nдоставку]","v":{"v":0,"d":"0.00р."}},{"$f":"АвгустПродажи[Прибыль и\nубытки от продаж]+АвгустПродажи[Прибыль и \nубытки от доставки]","v":{"v":0,"d":"0.00р."}}]
["Итоговая прибыль и убытки",{"$nulls":11},{"$f":"АвгустПродажи[Расходы\nна доставку]-АвгустПродажи[Сборы на\nдоставку]","v":{"v":0,"d":"0.00р."}},{"$f":"АвгустПродажи[Прибыль и\nубытки от продаж]+АвгустПродажи[Прибыль и \nубытки от доставки]","v":{"v":0,"d":"0.00р."}}]
[{"$f":"АвгустПродажи[[#Totals],[Итоговая\nприбыль и убытки]]","v":{"v":0,"d":"0.00р."}},{"$nulls":11},{"$f":"АвгустПродажи[Расходы\nна доставку]-АвгустПродажи[Сборы на\nдоставку]","v":{"v":0,"d":"0.00р."}},{"$f":"АвгустПродажи[Прибыль и\nубытки от продаж]+АвгустПродажи[Прибыль и \nубытки от доставки]","v":{"v":0,"d":"0.00р."}}]
[null,null,"Итого",{"$f":"\"Продано: \"&SUBTOTAL(103,АвгустПродажи[Описание\nэлемента])","v":"Продано: 0"},{"$f":"SUBTOTAL(109,АвгустПродажи[Цена\nпокупки])","v":{"v":0,"d":"0.00р."}},{"$f":"SUBTOTAL(109,АвгустПродажи[Цена продажи])","v":{"v":0,"d":"0.00р."}},{"$f":"SUBTOTAL(109,АвгустПродажи[Сборы за Интернет])","v":{"v":0,"d":"0.00р."}},{"$f":"SUBTOTAL(109,АвгустПродажи[Сборы\nPayPal])","v":{"v":0,"d":"0.00р."}},{"$f":"SUBTOTAL(109,АвгустПродажи[Сборы по\nкредитной карте])","v":{"v":0,"d":"0.00р."}},{"$f":"SUBTOTAL(109,АвгустПродажи[Расходы\nна доставку])","v":{"v":0,"d":"0.00р."}},{"$f":"SUBTOTAL(109,АвгустПродажи[Сборы на\nдоставку])","v":{"v":0,"d":"0.00р."}},{"$f":"SUBTOTAL(109,АвгустПродажи[Прибыль и\nубытки от продаж])","v":{"v":0,"d":"0.00р."}},{"$f":"SUBTOTAL(109,АвгустПродажи[Прибыль и \nубытки от доставки])","v":{"v":0,"d":"0.00р."}},{"$f":"SUBTOTAL(109,АвгустПродажи[Итоговая\nприбыль и убытки])","v":{"v":0,"d":"0.00р."}}]
["Тенденция прибыли и убытков"]

{"sheet":"Сентябрь","index":8,"n_rows":9,"n_cols":14,"rows_kept":9,"merged":[[3,0,4,0],[6,0,7,0]]}
["СЕНТЯБРЬ"]
["Продажи в Интернете",null,"Код\nаукциона","Описание\nэлемента","Цена\nпокупки","Цена продажи","Сборы за Интернет","Сборы\nPayPal","Сборы по\nкредитной карте","Расходы\nна доставку","Сборы на\nдоставку","Прибыль и\nубытки от продаж","Прибыль и \nубытки от доставки","Итоговая\nприбыль и убытки"]
["Год",{"$nulls":11},{"$f":"СентябрьПродажи[Расходы\nна доставку]-СентябрьПродажи[Сборы на\nдоставку]","v":{"v":0,"d":"0.00р."}},{"$f":"СентябрьПродажи[Прибыль и\nубытки от продаж]+СентябрьПродажи[Прибыль и \nубытки от доставки]","v":{"v":0,"d":"0.00р."}}]
[{"$f":"ПродажиГод","v":2012},{"$nulls":11},{"$f":"СентябрьПродажи[Расходы\nна доставку]-СентябрьПродажи[Сборы на\nдоставку]","v":{"v":0,"d":"0.00р."}},{"$f":"СентябрьПродажи[Прибыль и\nубытки от продаж]+СентябрьПродажи[Прибыль и \nубытки от доставки]","v":{"v":0,"d":"0.00р."}}]
[{"$nulls":12},{"$f":"СентябрьПродажи[Расходы\nна доставку]-СентябрьПродажи[Сборы на\nдоставку]","v":{"v":0,"d":"0.00р."}},{"$f":"СентябрьПродажи[Прибыль и\nубытки от продаж]+СентябрьПродажи[Прибыль и \nубытки от доставки]","v":{"v":0,"d":"0.00р."}}]
["Итоговая прибыль и убытки",{"$nulls":11},{"$f":"СентябрьПродажи[Расходы\nна доставку]-СентябрьПродажи[Сборы на\nдоставку]","v":{"v":0,"d":"0.00р."}},{"$f":"СентябрьПродажи[Прибыль и\nубытки от продаж]+СентябрьПродажи[Прибыль и \nубытки от доставки]","v":{"v":0,"d":"0.00р."}}]
[{"$f":"СентябрьПродажи[[#Totals],[Итоговая\nприбыль и убытки]]","v":{"v":0,"d":"0.00р."}},{"$nulls":11},{"$f":"СентябрьПродажи[Расходы\nна доставку]-СентябрьПродажи[Сборы на\nдоставку]","v":{"v":0,"d":"0.00р."}},{"$f":"СентябрьПродажи[Прибыль и\nубытки от продаж]+СентябрьПродажи[Прибыль и \nубытки от доставки]","v":{"v":0,"d":"0.00р."}}]
[null,null,"Итого",{"$f":"\"Продано: \"&SUBTOTAL(103,СентябрьПродажи[Описание\nэлемента])","v":"Продано: 0"},{"$f":"SUBTOTAL(109,СентябрьПродажи[Цена\nпокупки])","v":{"v":0,"d":"0.00р."}},{"$f":"SUBTOTAL(109,СентябрьПродажи[Цена продажи])","v":{"v":0,"d":"0.00р."}},{"$f":"SUBTOTAL(109,СентябрьПродажи[Сборы за Интернет])","v":{"v":0,"d":"0.00р."}},{"$f":"SUBTOTAL(109,СентябрьПродажи[Сборы\nPayPal])","v":{"v":0,"d":"0.00р."}},{"$f":"SUBTOTAL(109,СентябрьПродажи[Сборы по\nкредитной карте])","v":{"v":0,"d":"0.00р."}},{"$f":"SUBTOTAL(109,СентябрьПродажи[Расходы\nна доставку])","v":{"v":0,"d":"0.00р."}},{"$f":"SUBTOTAL(109,СентябрьПродажи[Сборы на\nдоставку])","v":{"v":0,"d":"0.00р."}},{"$f":"SUBTOTAL(109,СентябрьПродажи[Прибыль и\nубытки от продаж])","v":{"v":0,"d":"0.00р."}},{"$f":"SUBTOTAL(109,СентябрьПродажи[Прибыль и \nубытки от доставки])","v":{"v":0,"d":"0.00р."}},{"$f":"SUBTOTAL(109,СентябрьПродажи[Итоговая\nприбыль и убытки])","v":{"v":0,"d":"0.00р."}}]
["Тенденция прибыли и убытков"]

{"sheet":"Октябрь","index":9,"n_rows":9,"n_cols":14,"rows_kept":9,"merged":[[3,0,4,0],[6,0,7,0]]}
["ОКТЯБРЬ"]
["Продажи в Интернете",null,"Код\nаукциона","Описание\nэлемента","Цена\nпокупки","Цена продажи","Сборы за Интернет","Сборы\nPayPal","Сборы по\nкредитной карте","Расходы\nна доставку","Сборы на\nдоставку","Прибыль и\nубытки от продаж","Прибыль и \nубытки от доставки","Итоговая\nприбыль и убытки"]
["Год",{"$nulls":11},{"$f":"ОктябрьПродажи[Расходы\nна доставку]-ОктябрьПродажи[Сборы на\nдоставку]","v":{"v":0,"d":"0.00р."}},{"$f":"ОктябрьПродажи[Прибыль и\nубытки от продаж]+ОктябрьПродажи[Прибыль и \nубытки от доставки]","v":{"v":0,"d":"0.00р."}}]
[{"$f":"ПродажиГод","v":2012},{"$nulls":11},{"$f":"ОктябрьПродажи[Расходы\nна доставку]-ОктябрьПродажи[Сборы на\nдоставку]","v":{"v":0,"d":"0.00р."}},{"$f":"ОктябрьПродажи[Прибыль и\nубытки от продаж]+ОктябрьПродажи[Прибыль и \nубытки от доставки]","v":{"v":0,"d":"0.00р."}}]
[{"$nulls":12},{"$f":"ОктябрьПродажи[Расходы\nна доставку]-ОктябрьПродажи[Сборы на\nдоставку]","v":{"v":0,"d":"0.00р."}},{"$f":"ОктябрьПродажи[Прибыль и\nубытки от продаж]+ОктябрьПродажи[Прибыль и \nубытки от доставки]","v":{"v":0,"d":"0.00р."}}]
["Итоговая прибыль и убытки",{"$nulls":11},{"$f":"ОктябрьПродажи[Расходы\nна доставку]-ОктябрьПродажи[Сборы на\nдоставку]","v":{"v":0,"d":"0.00р."}},{"$f":"ОктябрьПродажи[Прибыль и\nубытки от продаж]+ОктябрьПродажи[Прибыль и \nубытки от доставки]","v":{"v":0,"d":"0.00р."}}]
[{"$f":"ОктябрьПродажи[[#Totals],[Итоговая\nприбыль и убытки]]","v":{"v":0,"d":"0.00р."}},{"$nulls":11},{"$f":"ОктябрьПродажи[Расходы\nна доставку]-ОктябрьПродажи[Сборы на\nдоставку]","v":{"v":0,"d":"0.00р."}},{"$f":"ОктябрьПродажи[Прибыль и\nубытки от продаж]+ОктябрьПродажи[Прибыль и \nубытки от доставки]","v":{"v":0,"d":"0.00р."}}]
[null,null,"Итого",{"$f":"\"Продано: \"&SUBTOTAL(103,ОктябрьПродажи[Описание\nэлемента])","v":"Продано: 0"},{"$f":"SUBTOTAL(109,ОктябрьПродажи[Цена\nпокупки])","v":{"v":0,"d":"0.00р."}},{"$f":"SUBTOTAL(109,ОктябрьПродажи[Цена продажи])","v":{"v":0,"d":"0.00р."}},{"$f":"SUBTOTAL(109,ОктябрьПродажи[Сборы за Интернет])","v":{"v":0,"d":"0.00р."}},{"$f":"SUBTOTAL(109,ОктябрьПродажи[Сборы\nPayPal])","v":{"v":0,"d":"0.00р."}},{"$f":"SUBTOTAL(109,ОктябрьПродажи[Сборы по\nкредитной карте])","v":{"v":0,"d":"0.00р."}},{"$f":"SUBTOTAL(109,ОктябрьПродажи[Расходы\nна доставку])","v":{"v":0,"d":"0.00р."}},{"$f":"SUBTOTAL(109,ОктябрьПродажи[Сборы на\nдоставку])","v":{"v":0,"d":"0.00р."}},{"$f":"SUBTOTAL(109,ОктябрьПродажи[Прибыль и\nубытки от продаж])","v":{"v":0,"d":"0.00р."}},{"$f":"SUBTOTAL(109,ОктябрьПродажи[Прибыль и \nубытки от доставки])","v":{"v":0,"d":"0.00р."}},{"$f":"SUBTOTAL(109,ОктябрьПродажи[Итоговая\nприбыль и убытки])","v":{"v":0,"d":"0.00р."}}]
["Тенденция прибыли и убытков"]

{"sheet":"Ноябрь","index":10,"n_rows":9,"n_cols":14,"rows_kept":9,"merged":[[3,0,4,0],[6,0,7,0]]}
["НОЯБРЬ"]
["Продажи в Интернете",null,"Код\nаукциона","Описание\nэлемента","Цена\nпокупки","Цена продажи","Сборы за Интернет","Сборы\nPayPal","Сборы по\nкредитной карте","Расходы\nна доставку","Сборы на\nдоставку","Прибыль и\nубытки от продаж","Прибыль и \nубытки от доставки","Итоговая\nприбыль и убытки"]
["Год",{"$nulls":11},{"$f":"НоябрьПродажи[Расходы\nна доставку]-НоябрьПродажи[Сборы на\nдоставку]","v":{"v":0,"d":"0.00р."}},{"$f":"НоябрьПродажи[Прибыль и\nубытки от продаж]+НоябрьПродажи[Прибыль и \nубытки от доставки]","v":{"v":0,"d":"0.00р."}}]
[{"$f":"ПродажиГод","v":2012},{"$nulls":11},{"$f":"НоябрьПродажи[Расходы\nна доставку]-НоябрьПродажи[Сборы на\nдоставку]","v":{"v":0,"d":"0.00р."}},{"$f":"НоябрьПродажи[Прибыль и\nубытки от продаж]+НоябрьПродажи[Прибыль и \nубытки от доставки]","v":{"v":0,"d":"0.00р."}}]
[{"$nulls":12},{"$f":"НоябрьПродажи[Расходы\nна доставку]-НоябрьПродажи[Сборы на\nдоставку]","v":{"v":0,"d":"0.00р."}},{"$f":"НоябрьПродажи[Прибыль и\nубытки от продаж]+НоябрьПродажи[Прибыль и \nубытки от доставки]","v":{"v":0,"d":"0.00р."}}]
["Итоговая прибыль и убытки",{"$nulls":11},{"$f":"НоябрьПродажи[Расходы\nна доставку]-НоябрьПродажи[Сборы на\nдоставку]","v":{"v":0,"d":"0.00р."}},{"$f":"НоябрьПродажи[Прибыль и\nубытки от продаж]+НоябрьПродажи[Прибыль и \nубытки от доставки]","v":{"v":0,"d":"0.00р."}}]
[{"$f":"НоябрьПродажи[[#Totals],[Итоговая\nприбыль и убытки]]","v":{"v":0,"d":"0.00р."}},{"$nulls":11},{"$f":"НоябрьПродажи[Расходы\nна доставку]-НоябрьПродажи[Сборы на\nдоставку]","v":{"v":0,"d":"0.00р."}},{"$f":"НоябрьПродажи[Прибыль и\nубытки от продаж]+НоябрьПродажи[Прибыль и \nубытки от доставки]","v":{"v":0,"d":"0.00р."}}]
[null,null,"Итого",{"$f":"\"Продано: \"&SUBTOTAL(103,НоябрьПродажи[Описание\nэлемента])","v":"Продано: 0"},{"$f":"SUBTOTAL(109,НоябрьПродажи[Цена\nпокупки])","v":{"v":0,"d":"0.00р."}},{"$f":"SUBTOTAL(109,НоябрьПродажи[Цена продажи])","v":{"v":0,"d":"0.00р."}},{"$f":"SUBTOTAL(109,НоябрьПродажи[Сборы за Интернет])","v":{"v":0,"d":"0.00р."}},{"$f":"SUBTOTAL(109,НоябрьПродажи[Сборы\nPayPal])","v":{"v":0,"d":"0.00р."}},{"$f":"SUBTOTAL(109,НоябрьПродажи[Сборы по\nкредитной карте])","v":{"v":0,"d":"0.00р."}},{"$f":"SUBTOTAL(109,НоябрьПродажи[Расходы\nна доставку])","v":{"v":0,"d":"0.00р."}},{"$f":"SUBTOTAL(109,НоябрьПродажи[Сборы на\nдоставку])","v":{"v":0,"d":"0.00р."}},{"$f":"SUBTOTAL(109,НоябрьПродажи[Прибыль и\nубытки от продаж])","v":{"v":0,"d":"0.00р."}},{"$f":"SUBTOTAL(109,НоябрьПродажи[Прибыль и \nубытки от доставки])","v":{"v":0,"d":"0.00р."}},{"$f":"SUBTOTAL(109,НоябрьПродажи[Итоговая\nприбыль и убытки])","v":{"v":0,"d":"0.00р."}}]
["Тенденция прибыли и убытков"]

{"sheet":"Декабрь","index":11,"n_rows":9,"n_cols":14,"rows_kept":9,"merged":[[3,0,4,0],[6,0,7,0]]}
["ДЕКАБРЬ"]
["Продажи в Интернете",null,"Код\nаукциона","Описание\nэлемента","Цена\nпокупки","Цена продажи","Сборы за Интернет","Сборы\nPayPal","Сборы по\nкредитной карте","Расходы\nна доставку","Сборы на\nдоставку","Прибыль и\nубытки от продаж","Прибыль и \nубытки от доставки","Итоговая\nприбыль и убытки"]
["Год",{"$nulls":11},{"$f":"ДекабрьПродажи[Расходы\nна доставку]-ДекабрьПродажи[Сборы на\nдоставку]","v":{"v":0,"d":"0.00р."}},{"$f":"ДекабрьПродажи[Прибыль и\nубытки от продаж]+ДекабрьПродажи[Прибыль и \nубытки от доставки]","v":{"v":0,"d":"0.00р."}}]
[{"$f":"ПродажиГод","v":2012},{"$nulls":11},{"$f":"ДекабрьПродажи[Расходы\nна доставку]-ДекабрьПродажи[Сборы на\nдоставку]","v":{"v":0,"d":"0.00р."}},{"$f":"ДекабрьПродажи[Прибыль и\nубытки от продаж]+ДекабрьПродажи[Прибыль и \nубытки от доставки]","v":{"v":0,"d":"0.00р."}}]
[{"$nulls":12},{"$f":"ДекабрьПродажи[Расходы\nна доставку]-ДекабрьПродажи[Сборы на\nдоставку]","v":{"v":0,"d":"0.00р."}},{"$f":"ДекабрьПродажи[Прибыль и\nубытки от продаж]+ДекабрьПродажи[Прибыль и \nубытки от доставки]","v":{"v":0,"d":"0.00р."}}]
["Итоговая прибыль и убытки",{"$nulls":11},{"$f":"ДекабрьПродажи[Расходы\nна доставку]-ДекабрьПродажи[Сборы на\nдоставку]","v":{"v":0,"d":"0.00р."}},{"$f":"ДекабрьПродажи[Прибыль и\nубытки от продаж]+ДекабрьПродажи[Прибыль и \nубытки от доставки]","v":{"v":0,"d":"0.00р."}}]
[{"$f":"ДекабрьПродажи[[#Totals],[Итоговая\nприбыль и убытки]]","v":{"v":0,"d":"0.00р."}},{"$nulls":11},{"$f":"ДекабрьПродажи[Расходы\nна доставку]-ДекабрьПродажи[Сборы на\nдоставку]","v":{"v":0,"d":"0.00р."}},{"$f":"ДекабрьПродажи[Прибыль и\nубытки от продаж]+ДекабрьПродажи[Прибыль и \nубытки от доставки]","v":{"v":0,"d":"0.00р."}}]
[null,null,"Итого",{"$f":"\"Продано: \"&SUBTOTAL(103,ДекабрьПродажи[Описание\nэлемента])","v":"Продано: 0"},{"$f":"SUBTOTAL(109,ДекабрьПродажи[Цена\nпокупки])","v":{"v":0,"d":"0.00р."}},{"$f":"SUBTOTAL(109,ДекабрьПродажи[Цена продажи])","v":{"v":0,"d":"0.00р."}},{"$f":"SUBTOTAL(109,ДекабрьПродажи[Сборы за Интернет])","v":{"v":0,"d":"0.00р."}},{"$f":"SUBTOTAL(109,ДекабрьПродажи[Сборы\nPayPal])","v":{"v":0,"d":"0.00р."}},{"$f":"SUBTOTAL(109,ДекабрьПродажи[Сборы по\nкредитной карте])","v":{"v":0,"d":"0.00р."}},{"$f":"SUBTOTAL(109,ДекабрьПродажи[Расходы\nна доставку])","v":{"v":0,"d":"0.00р."}},{"$f":"SUBTOTAL(109,ДекабрьПродажи[Сборы на\nдоставку])","v":{"v":0,"d":"0.00р."}},{"$f":"SUBTOTAL(109,ДекабрьПродажи[Прибыль и\nубытки от продаж])","v":{"v":0,"d":"0.00р."}},{"$f":"SUBTOTAL(109,ДекабрьПродажи[Прибыль и \nубытки от доставки])","v":{"v":0,"d":"0.00р."}},{"$f":"SUBTOTAL(109,ДекабрьПродажи[Итоговая\nприбыль и убытки])","v":{"v":0,"d":"0.00р."}}]
["Тенденция прибыли и убытков"]

{"sheet":"Сводный отчет с начала года","index":12,"n_rows":16,"n_cols":11,"rows_kept":16,"merged":[[3,0,4,0],[6,0,7,0]]}
["С начала года"]
["Сводка",null,"Прибыль и убытки",{"$nulls":4},"Прибыль и убытки с начала года"]
["Год",{"$nulls":6},"Месяц","Прибыль и убытки от продаж","Прибыль и убытки от доставки","Итоговая\nприбыль и убытки"]
[{"$f":"ПродажиГод","v":2012},{"$nulls":6},"Январь",{"$f":"ЯнварьПродажи[[#Totals],[Прибыль и\nубытки от продаж]]","v":{"v":79.5,"d":"79.50р."}},{"$f":"ЯнварьПродажи[[#Totals],[Прибыль и \nубытки от доставки]]","v":{"v":9.5,"d":"9.50р."}},{"$f":"IF(AND(СводкаСНачГода[[#This Row],[Прибыль и убытки от продаж]]<>\"\",СводкаСНачГода[[#This Row],[Прибыль и убытки от доставки]]<>\"\"),СводкаСНачГода[[#This Row],[Прибыль и убытки от продаж]]+СводкаСНачГода[[#This Row],[Прибыль и убытки от доставки]],\"\")","v":{"v":89,"d":"89.00р."}}]
[{"$nulls":7},"Февраль",{"$f":"ФевральПродажи[[#Totals],[Прибыль и\nубытки от продаж]]","v":{"v":212.3,"d":"212.30р."}},{"$f":"ФевральПродажи[[#Totals],[Прибыль и \nубытки от доставки]]","v":{"v":12.3,"d":"12.30р."}},{"$f":"IF(AND(СводкаСНачГода[[#This Row],[Прибыль и убытки от продаж]]<>\"\",СводкаСНачГода[[#This Row],[Прибыль и убытки от доставки]]<>\"\"),СводкаСНачГода[[#This Row],[Прибыль и убытки от продаж]]+СводкаСНачГода[[#This Row],[Прибыль и убытки от доставки]],\"\")","v":{"v":224.60000000000002,"d":"224.60р."}}]
["Тенденция продаж за месяц:",{"$nulls":6},"Март",{"$f":"МартПродажи[[#Totals],[Прибыль и\nубытки от продаж]]","v":{"v":0,"d":"0.00р."}},{"$f":"МартПродажи[[#Totals],[Прибыль и \nубытки от доставки]]","v":{"v":0,"d":"0.00р."}},{"$f":"IF(AND(СводкаСНачГода[[#This Row],[Прибыль и убытки от продаж]]<>\"\",СводкаСНачГода[[#This Row],[Прибыль и убытки от доставки]]<>\"\"),СводкаСНачГода[[#This Row],[Прибыль и убытки от продаж]]+СводкаСНачГода[[#This Row],[Прибыль и убытки от доставки]],\"\")","v":{"v":0,"d":"0.00р."}}]
[{"$nulls":7},"Апрель",{"$f":"АпрельПродажи[[#Totals],[Прибыль и\nубытки от продаж]]","v":{"v":0,"d":"0.00р."}},{"$f":"АпрельПродажи[[#Totals],[Прибыль и \nубытки от доставки]]","v":{"v":0,"d":"0.00р."}},{"$f":"IF(AND(СводкаСНачГода[[#This Row],[Прибыль и убытки от продаж]]<>\"\",СводкаСНачГода[[#This Row],[Прибыль и убытки от доставки]]<>\"\"),СводкаСНачГода[[#This Row],[Прибыль и убытки от продаж]]+СводкаСНачГода[[#This Row],[Прибыль и убытки от доставки]],\"\")","v":{"v":0,"d":"0.00р."}}]
[{"$nulls":7},"Май",{"$f":"МайПродажи[[#Totals],[Прибыль и\nубытки от продаж]]","v":{"v":0,"d":"0.00р."}},{"$f":"МайПродажи[[#Totals],[Прибыль и \nубытки от доставки]]","v":{"v":0,"d":"0.00р."}},{"$f":"IF(AND(СводкаСНачГода[[#This Row],[Прибыль и убытки от продаж]]<>\"\",СводкаСНачГода[[#This Row],[Прибыль и убытки от доставки]]<>\"\"),СводкаСНачГода[[#This Row],[Прибыль и убытки от продаж]]+СводкаСНачГода[[#This Row],[Прибыль и убытки от доставки]],\"\")","v":{"v":0,"d":"0.00р."}}]
[{"$nulls":7},"Июнь",{"$f":"ИюньПродажи[[#Totals],[Прибыль и\nубытки от продаж]]","v":{"v":0,"d":"0.00р."}},{"$f":"ИюньПродажи[[#Totals],[Прибыль и \nубытки от доставки]]","v":{"v":0,"d":"0.00р."}},{"$f":"IF(AND(СводкаСНачГода[[#This Row],[Прибыль и убытки от продаж]]<>\"\",СводкаСНачГода[[#This Row],[Прибыль и убытки от доставки]]<>\"\"),СводкаСНачГода[[#This Row],[Прибыль и убытки от продаж]]+СводкаСНачГода[[#This Row],[Прибыль и убытки от доставки]],\"\")","v":{"v":0,"d":"0.00р."}}]
[{"$nulls":7},"Июль",{"$f":"ИюльПродажи[[#Totals],[Прибыль и\nубытки от продаж]]","v":{"v":0,"d":"0.00р."}},{"$f":"ИюльПродажи[[#Totals],[Прибыль и \nубытки от доставки]]","v":{"v":0,"d":"0.00р."}},{"$f":"IF(AND(СводкаСНачГода[[#This Row],[Прибыль и убытки от продаж]]<>\"\",СводкаСНачГода[[#This Row],[Прибыль и убытки от доставки]]<>\"\"),СводкаСНачГода[[#This Row],[Прибыль и убытки от продаж]]+СводкаСНачГода[[#This Row],[Прибыль и убытки от доставки]],\"\")","v":{"v":0,"d":"0.00р."}}]
[{"$nulls":7},"Август",{"$f":"АвгустПродажи[[#Totals],[Прибыль и\nубытки от продаж]]","v":{"v":0,"d":"0.00р."}},{"$f":"АвгустПродажи[[#Totals],[Прибыль и \nубытки от доставки]]","v":{"v":0,"d":"0.00р."}},{"$f":"IF(AND(СводкаСНачГода[[#This Row],[Прибыль и убытки от продаж]]<>\"\",СводкаСНачГода[[#This Row],[Прибыль и убытки от доставки]]<>\"\"),СводкаСНачГода[[#This Row],[Прибыль и убытки от продаж]]+СводкаСНачГода[[#This Row],[Прибыль и убытки от доставки]],\"\")","v":{"v":0,"d":"0.00р."}}]
[{"$nulls":7},"Сентябрь",{"$f":"СентябрьПродажи[[#Totals],[Прибыль и\nубытки от продаж]]","v":{"v":0,"d":"0.00р."}},{"$f":"СентябрьПродажи[[#Totals],[Прибыль и \nубытки от доставки]]","v":{"v":0,"d":"0.00р."}},{"$f":"IF(AND(СводкаСНачГода[[#This Row],[Прибыль и убытки от продаж]]<>\"\",СводкаСНачГода[[#This Row],[Прибыль и убытки от доставки]]<>\"\"),СводкаСНачГода[[#This Row],[Прибыль и убытки от продаж]]+СводкаСНачГода[[#This Row],[Прибыль и убытки от доставки]],\"\")","v":{"v":0,"d":"0.00р."}}]
[{"$nulls":7},"Октябрь",{"$f":"ОктябрьПродажи[[#Totals],[Прибыль и\nубытки от продаж]]","v":{"v":0,"d":"0.00р."}},{"$f":"ОктябрьПродажи[[#Totals],[Прибыль и \nубытки от доставки]]","v":{"v":0,"d":"0.00р."}},{"$f":"IF(AND(СводкаСНачГода[[#This Row],[Прибыль и убытки от продаж]]<>\"\",СводкаСНачГода[[#This Row],[Прибыль и убытки от доставки]]<>\"\"),СводкаСНачГода[[#This Row],[Прибыль и убытки от продаж]]+СводкаСНачГода[[#This Row],[Прибыль и убытки от доставки]],\"\")","v":{"v":0,"d":"0.00р."}}]
[{"$nulls":7},"Ноябрь",{"$f":"НоябрьПродажи[[#Totals],[Прибыль и\nубытки от продаж]]","v":{"v":0,"d":"0.00р."}},{"$f":"НоябрьПродажи[[#Totals],[Прибыль и \nубытки от доставки]]","v":{"v":0,"d":"0.00р."}},{"$f":"IF(AND(СводкаСНачГода[[#This Row],[Прибыль и убытки от продаж]]<>\"\",СводкаСНачГода[[#This Row],[Прибыль и убытки от доставки]]<>\"\"),СводкаСНачГода[[#This Row],[Прибыль и убытки от продаж]]+СводкаСНачГода[[#This Row],[Прибыль и убытки от доставки]],\"\")","v":{"v":0,"d":"0.00р."}}]
[{"$nulls":7},"Декабрь",{"$f":"НоябрьПродажи[[#Totals],[Прибыль и\nубытки от продаж]]","v":{"v":0,"d":"0.00р."}},{"$f":"НоябрьПродажи[[#Totals],[Прибыль и \nубытки от доставки]]","v":{"v":0,"d":"0.00р."}},{"$f":"IF(AND(СводкаСНачГода[[#This Row],[Прибыль и убытки от продаж]]<>\"\",СводкаСНачГода[[#This Row],[Прибыль и убытки от доставки]]<>\"\"),СводкаСНачГода[[#This Row],[Прибыль и убытки от продаж]]+СводкаСНачГода[[#This Row],[Прибыль и убытки от доставки]],\"\")","v":{"v":0,"d":"0.00р."}}]
[{"$nulls":7},"Итого",{"$f":"SUBTOTAL(109,СводкаСНачГода[Прибыль и убытки от продаж])","v":{"v":291.8,"d":"291.80р."}},{"$f":"SUBTOTAL(109,СводкаСНачГода[Прибыль и убытки от доставки])","v":{"v":21.8,"d":"21.80р."}},{"$f":"SUBTOTAL(109,СводкаСНачГода[Итоговая\nприбыль и убытки])","v":{"v":313.6,"d":"313.60р."}}]